[Event "Early-Titled-Tuesday-Blitz-April-02-2024"]
[Site "Chess.com"]
[Date "2024.04.02"]
[Round "9"]
[White "Msb2"]
[Black "eagleclaw07"]
[Result "1-0"]
[WhiteElo "3024"]
[BlackElo "2848"]
[TimeControl "180+1"]
[EndTime "9:45:17 PDT"]
[Termination "Msb2 won by resignation"]

1. d4 {[%clk 0:03:00.9]} 1... Nf6 {[%clk 0:02:59.8]} 2. c4 {[%clk 0:03:00.6]}
2... e6 {[%clk 0:03:00.5]} 3. Nc3 {[%clk 0:03:01.1]} 3... Bb4 {[%clk 0:03:01.3]}
4. e3 {[%clk 0:03:01.3]} 4... d5 {[%clk 0:02:59.7]} 5. Bd2 {[%clk 0:03:01.2]}
5... O-O {[%clk 0:02:59.5]} 6. Nf3 {[%clk 0:03:01.7]} 6... c5 {[%clk 0:02:59]}
7. a3 {[%clk 0:03:01.7]} 7... Bxc3 {[%clk 0:02:58.5]} 8. Bxc3 {[%clk 0:03:02.6]}
8... Ne4 {[%clk 0:02:59.1]} 9. Rc1 {[%clk 0:03:02.8]} 9... Nxc3 {[%clk
0:02:54.7]} 10. Rxc3 {[%clk 0:03:03.7]} 10... cxd4 {[%clk 0:02:54.5]} 11. Nxd4
{[%clk 0:03:04.6]} 11... Nc6 {[%clk 0:02:42.9]} 12. cxd5 {[%clk 0:03:03.3]}
12... Qxd5 {[%clk 0:02:37.4]} 13. Nxc6 {[%clk 0:03:01.8]} 13... bxc6 {[%clk
0:02:38.3]} 14. Qc2 {[%clk 0:02:58.2]} 14... Rb8 {[%clk 0:02:28.5]} 15. b4
{[%clk 0:02:54]} 15... e5 {[%clk 0:02:13.3]} 16. Rc5 {[%clk 0:02:52.1]} 16...
Qd6 {[%clk 0:02:04.3]} 17. Bd3 {[%clk 0:02:49.2]} 17... Rd8 {[%clk 0:01:58.5]}
18. Be2 {[%clk 0:02:29]} 18... Be6 {[%clk 0:01:03]} 19. O-O {[%clk 0:02:26.7]}
19... Bd5 {[%clk 0:00:56.3]} 20. e4 {[%clk 0:02:21.5]} 20... Be6 {[%clk
0:00:56.1]} 21. Bc4 {[%clk 0:02:19.6]} 21... Bxc4 {[%clk 0:00:50.7]} 22. Qxc4
{[%clk 0:02:18]} 22... Qd3 {[%clk 0:00:47]} 23. Qxd3 {[%clk 0:02:06]} 23... Rxd3
{[%clk 0:00:47.9]} 24. Ra5 {[%clk 0:02:06.8]} 24... Ra8 {[%clk 0:00:31]} 25. f3
{[%clk 0:02:04.9]} 25... f6 {[%clk 0:00:27]} 26. Rc1 {[%clk 0:02:04.6]} 26...
Rd6 {[%clk 0:00:25.1]} 27. Ra6 {[%clk 0:02:04.2]} 27... h5 {[%clk 0:00:20.1]}
28. h4 {[%clk 0:02:03.4]} 28... Kh7 {[%clk 0:00:17.4]} 29. Rcxc6 {[%clk
0:02:01.3]} 29... Rd1+ {[%clk 0:00:17.3]} 30. Kh2 {[%clk 0:02:01.6]} 30... Rd7
{[%clk 0:00:17.3]} 31. Kg3 {[%clk 0:02:00.3]} 31... Rad8 {[%clk 0:00:16.8]} 32.
b5 {[%clk 0:01:56]} 32... Rb7 {[%clk 0:00:16.3]} 33. a4 {[%clk 0:01:56.2]} 33...
Rd4 {[%clk 0:00:15.5]} 34. Rd6 {[%clk 0:01:49.3]} 34... Rb4 {[%clk 0:00:15]} 35.
Rd8 {[%clk 0:01:46.6]} 35... Rc7 {[%clk 0:00:15]} 36. Rd2 {[%clk 0:01:42.3]}
36... Rbc4 {[%clk 0:00:13.2]} 37. Rb2 {[%clk 0:01:37.8]} 37... Rb7 {[%clk
0:00:12.5]} 38. Kh3 {[%clk 0:01:33.1]} 38... Rd4 {[%clk 0:00:10.2]} 39. Rc2
{[%clk 0:01:31.9]} 39... Rb4 {[%clk 0:00:09.4]} 40. Rc8 {[%clk 0:01:31.1]} 40...
Rd7 {[%clk 0:00:09.2]} 41. Rc2 {[%clk 0:01:25.1]} 41... Rb7 {[%clk 0:00:08.6]}
42. g4 {[%clk 0:01:24.9]} 42... hxg4+ {[%clk 0:00:07.6]} 43. Kxg4 {[%clk
0:01:25.8]} 43... Rd7 {[%clk 0:00:07.8]} 44. h5 {[%clk 0:01:21.5]} 44... Rb1
{[%clk 0:00:08]} 45. Kf5 {[%clk 0:01:18.2]} 45... Kh6 {[%clk 0:00:08.1]} 46. Ke6
{[%clk 0:01:17.9]} 46... Rb7 {[%clk 0:00:08.4]} 47. Rac6 {[%clk 0:01:16.7]}
47... Rb4 {[%clk 0:00:07.9]} 48. Ra6 {[%clk 0:01:15.8]} 48... Rb3 {[%clk
0:00:08]} 49. Rd2 {[%clk 0:01:15.4]} 49... Rxf3 {[%clk 0:00:08.1]} 50. Rd7
{[%clk 0:01:15.7]} 50... Rxd7 {[%clk 0:00:08.4]} 51. Kxd7 {[%clk 0:01:16.6]}
51... Re3 {[%clk 0:00:05.8]} 52. Rxa7 {[%clk 0:01:16.7]} 52... Rxe4 {[%clk
0:00:06.5]} 53. b6 {[%clk 0:01:16.8]} 53... Rb4 {[%clk 0:00:07]} 54. b7 {[%clk
0:01:17]} 54... e4 {[%clk 0:00:07.1]} 55. Kc6 {[%clk 0:01:15.5]} 55... e3 {[%clk
0:00:06.9]} 56. Ra8 {[%clk 0:01:16.2]} 56... f5 {[%clk 0:00:06.5]} 57. Re8
{[%clk 0:01:14.6]} 57... f4 {[%clk 0:00:06.6]} 58. a5 {[%clk 0:01:15.3]} 58...
Kxh5 {[%clk 0:00:04.2]} 59. a6 {[%clk 0:01:15.6]} 59... Kg4 {[%clk 0:00:02.1]}
60. a7 {[%clk 0:01:16.2]} 60... f3 {[%clk 0:00:01.4]} 61. b8=Q {[%clk
0:01:14.2]} 61... f2 {[%clk 0:00:02.2]} 62. Qxb4+ {[%clk 0:01:12.9]} 1-0

[Event "Early-Titled-Tuesday-Blitz-April-02-2024"]
[Site "Chess.com"]
[Date "2024.04.02"]
[Round "9"]
[White "Baku_Boulevard"]
[Black "rezamahdavi2008"]
[Result "1/2-1/2"]
[WhiteElo "3034"]
[BlackElo "2912"]
[TimeControl "180+1"]
[EndTime "9:45:21 PDT"]
[Termination "Game drawn by repetition"]

1. e4 {[%clk 0:03:00.9]} 1... c5 {[%clk 0:02:59.3]} 2. Nf3 {[%clk 0:03:00.6]}
2... d6 {[%clk 0:02:59.8]} 3. Nc3 {[%clk 0:03:00.3]} 3... a6 {[%clk 0:02:59.4]}
4. g3 {[%clk 0:03:00.1]} 4... Nc6 {[%clk 0:02:57.6]} 5. Bg2 {[%clk 0:03:00.2]}
5... Nf6 {[%clk 0:02:57.9]} 6. O-O {[%clk 0:03:00.4]} 6... g6 {[%clk 0:02:41.5]}
7. Re1 {[%clk 0:03:00.5]} 7... Bg4 {[%clk 0:02:38.2]} 8. h3 {[%clk 0:03:00.4]}
8... Bxf3 {[%clk 0:02:38.8]} 9. Bxf3 {[%clk 0:03:01.1]} 9... Bg7 {[%clk
0:02:39.6]} 10. a4 {[%clk 0:03:01]} 10... O-O {[%clk 0:02:40.1]} 11. Bg2 {[%clk
0:03:01.1]} 11... Rb8 {[%clk 0:02:40.3]} 12. d3 {[%clk 0:03:01]} 12... Nd7
{[%clk 0:02:40.8]} 13. Ne2 {[%clk 0:03:01]} 13... b5 {[%clk 0:02:39.3]} 14. axb5
{[%clk 0:03:01.9]} 14... axb5 {[%clk 0:02:40.2]} 15. e5 {[%clk 0:03:02.6]} 15...
Qc7 {[%clk 0:02:27.2]} 16. e6 {[%clk 0:03:02.4]} 16... Nb6 {[%clk 0:02:02.8]}
17. Nf4 {[%clk 0:02:58.2]} 17... f5 {[%clk 0:01:59.8]} 18. h4 {[%clk 0:02:55.3]}
18... Ne5 {[%clk 0:01:51]} 19. c3 {[%clk 0:02:47.3]} 19... Ng4 {[%clk
0:01:50.4]} 20. Ra6 {[%clk 0:02:23.3]} 20... Rfe8 {[%clk 0:01:44.8]} 21. Bd2
{[%clk 0:02:17.3]} 21... b4 {[%clk 0:01:31.2]} 22. Bf3 {[%clk 0:02:08.1]} 22...
bxc3 {[%clk 0:01:27.2]} 23. bxc3 {[%clk 0:02:08.4]} 23... Nf6 {[%clk 0:01:12.1]}
24. Qe2 {[%clk 0:02:07.2]} 24... Nc8 {[%clk 0:01:02.1]} 25. h5 {[%clk
0:01:54.8]} 25... g5 {[%clk 0:00:55.2]} 26. Nd5 {[%clk 0:01:55]} 26... Nxd5
{[%clk 0:00:55.9]} 27. Bxd5 {[%clk 0:01:55.5]} 27... h6 {[%clk 0:00:54.5]} 28.
d4 {[%clk 0:01:29.4]} 28... cxd4 {[%clk 0:00:50.3]} 29. cxd4 {[%clk 0:01:29.3]}
29... Rb2 {[%clk 0:00:50.7]} 30. Qd3 {[%clk 0:01:15.8]} 30... Qc2 {[%clk
0:00:44.4]} 31. Qxc2 {[%clk 0:01:09.8]} 31... Rxc2 {[%clk 0:00:45.3]} 32. Be3
{[%clk 0:00:53.1]} 32... f4 {[%clk 0:00:45.4]} 33. gxf4 {[%clk 0:00:42.6]} 33...
gxf4 {[%clk 0:00:46.3]} 34. Bxf4 {[%clk 0:00:42.6]} 34... Bxd4 {[%clk 0:00:47]}
35. Be3 {[%clk 0:00:32.7]} 35... Bxe3 {[%clk 0:00:31.3]} 36. Rxe3 {[%clk
0:00:32.9]} 36... Rf8 {[%clk 0:00:31.8]} 37. Rg3+ {[%clk 0:00:24.1]} 37... Kh8
{[%clk 0:00:32.1]} 38. Ra8 {[%clk 0:00:24.3]} 38... Rcxf2 {[%clk 0:00:18.7]} 39.
Rxc8 {[%clk 0:00:04.7]} 39... Rf1+ {[%clk 0:00:19]} 40. Kg2 {[%clk 0:00:05.4]}
40... Rf2+ {[%clk 0:00:19.7]} 41. Kg1 {[%clk 0:00:06]} 41... Rf1+ {[%clk
0:00:20.3]} 42. Kg2 {[%clk 0:00:06.7]} 42... Rf2+ {[%clk 0:00:21]} 43. Kg1
{[%clk 0:00:07.4]} 1/2-1/2

[Event "Early-Titled-Tuesday-Blitz-April-02-2024"]
[Site "Chess.com"]
[Date "2024.04.02"]
[Round "9"]
[White "HajiyevKanan"]
[Black "FlemingA"]
[Result "1-0"]
[WhiteElo "2608"]
[BlackElo "2461"]
[TimeControl "180+1"]
[EndTime "9:45:22 PDT"]
[Termination "HajiyevKanan won by resignation"]

1. d4 {[%clk 0:03:00.9]} 1... g6 {[%clk 0:02:56.5]} 2. Nf3 {[%clk 0:03:01.8]}
2... Bg7 {[%clk 0:02:57]} 3. c4 {[%clk 0:03:02.6]} 3... d6 {[%clk 0:02:55.5]} 4.
g3 {[%clk 0:03:03.3]} 4... Nf6 {[%clk 0:02:56.1]} 5. Bg2 {[%clk 0:03:03.9]} 5...
O-O {[%clk 0:02:56.6]} 6. O-O {[%clk 0:03:04.8]} 6... Nbd7 {[%clk 0:02:53.5]} 7.
b3 {[%clk 0:03:05.7]} 7... a5 {[%clk 0:02:53.6]} 8. Bb2 {[%clk 0:03:06.3]} 8...
a4 {[%clk 0:02:44.2]} 9. Qc2 {[%clk 0:03:04.7]} 9... c6 {[%clk 0:02:41.5]} 10.
Rd1 {[%clk 0:03:01]} 10... d5 {[%clk 0:02:35.5]} 11. e3 {[%clk 0:02:56.6]} 11...
Nb6 {[%clk 0:02:32.5]} 12. Nbd2 {[%clk 0:02:56.7]} 12... Bf5 {[%clk 0:02:31.9]}
13. Qc1 {[%clk 0:02:54.5]} 13... Ne4 {[%clk 0:02:26.9]} 14. Nh4 {[%clk
0:02:49.5]} 14... Nxd2 {[%clk 0:02:15.9]} 15. Nxf5 {[%clk 0:02:39.1]} 15... gxf5
{[%clk 0:02:16.8]} 16. Rxd2 {[%clk 0:02:37.2]} 16... e6 {[%clk 0:01:57.9]} 17.
Ba3 {[%clk 0:02:31]} 17... Re8 {[%clk 0:01:56.8]} 18. Bc5 {[%clk 0:02:14.9]}
18... Nd7 {[%clk 0:01:55.5]} 19. Bd6 {[%clk 0:01:53.2]} 19... Nf6 {[%clk
0:01:55.5]} 20. c5 {[%clk 0:01:47.6]} 20... Bf8 {[%clk 0:01:48.4]} 21. Be5
{[%clk 0:01:43.3]} 21... Nd7 {[%clk 0:01:33.7]} 22. Bf4 {[%clk 0:01:40.6]} 22...
f6 {[%clk 0:01:33.4]} 23. h4 {[%clk 0:01:30.5]} 23... h6 {[%clk 0:01:20.3]} 24.
g4 {[%clk 0:01:07]} 24... fxg4 {[%clk 0:01:14.2]} 25. Qd1 {[%clk 0:01:06.9]}
25... f5 {[%clk 0:01:10.5]} 26. f3 {[%clk 0:01:06.8]} 26... Qxh4 {[%clk
0:01:08.6]} 27. fxg4 {[%clk 0:01:06.4]} 27... fxg4 {[%clk 0:01:07.3]} 28. bxa4
{[%clk 0:01:01.2]} 28... Bg7 {[%clk 0:01:01.6]} 29. Rb1 {[%clk 0:00:57.1]} 29...
Ra7 {[%clk 0:00:53.8]} 30. Qc2 {[%clk 0:00:47.5]} 30... e5 {[%clk 0:00:39.4]}
31. Qg6 {[%clk 0:00:42.9]} 31... Re7 {[%clk 0:00:18.1]} 32. dxe5 {[%clk
0:00:40.1]} 32... Nxe5 {[%clk 0:00:15.4]} 33. Qd6 {[%clk 0:00:30.4]} 33... g3
{[%clk 0:00:05]} 34. Qb8+ {[%clk 0:00:18.2]} 34... Kh7 {[%clk 0:00:04.1]} 35.
Qxa7 {[%clk 0:00:19.1]} 35... Ng4 {[%clk 0:00:02.2]} 36. Rxb7 {[%clk 0:00:13.9]}
36... Qh2+ {[%clk 0:00:01.8]} 37. Kf1 {[%clk 0:00:14]} 37... d4 {[%clk
0:00:01.2]} 38. Rxe7 {[%clk 0:00:13]} 38... Nxe3+ {[%clk 0:00:01.7]} 39. Bxe3
{[%clk 0:00:11.1]} 39... dxe3 {[%clk 0:00:02.3]} 40. Rxg7+ {[%clk 0:00:11.1]}
1-0

[Event "Early-Titled-Tuesday-Blitz-April-02-2024"]
[Site "Chess.com"]
[Date "2024.04.02"]
[Round "9"]
[White "JCVanDamme10"]
[Black "Ralf61"]
[Result "1-0"]
[WhiteElo "2365"]
[BlackElo "2505"]
[TimeControl "180+1"]
[EndTime "9:45:24 PDT"]
[Termination "JCVanDamme10 won on time"]

1. e4 {[%clk 0:02:58.8]} 1... c5 {[%clk 0:02:58.4]} 2. Nf3 {[%clk 0:02:58.8]}
2... d6 {[%clk 0:02:58.1]} 3. d4 {[%clk 0:02:58.9]} 3... cxd4 {[%clk 0:02:57.9]}
4. Nxd4 {[%clk 0:02:59.8]} 4... Nf6 {[%clk 0:02:57.7]} 5. Nc3 {[%clk 0:03:00.4]}
5... a6 {[%clk 0:02:57]} 6. h3 {[%clk 0:03:00.4]} 6... e6 {[%clk 0:02:53]} 7. g4
{[%clk 0:02:58.7]} 7... b5 {[%clk 0:02:52.4]} 8. Bg2 {[%clk 0:02:58.3]} 8... Bb7
{[%clk 0:02:51.6]} 9. O-O {[%clk 0:02:58.8]} 9... Be7 {[%clk 0:02:42.9]} 10. Be3
{[%clk 0:02:58.5]} 10... Qc7 {[%clk 0:02:41.1]} 11. g5 {[%clk 0:02:52.1]} 11...
Nfd7 {[%clk 0:02:39.6]} 12. f4 {[%clk 0:02:45.8]} 12... Nb6 {[%clk 0:02:34.5]}
13. Bf2 {[%clk 0:02:42.6]} 13... N8d7 {[%clk 0:02:27.3]} 14. Re1 {[%clk
0:02:39]} 14... O-O {[%clk 0:02:21.3]} 15. a4 {[%clk 0:02:32.7]} 15... b4 {[%clk
0:02:16.9]} 16. Nce2 {[%clk 0:02:33.3]} 16... a5 {[%clk 0:02:12.1]} 17. Ng3
{[%clk 0:02:32.2]} 17... Rfe8 {[%clk 0:02:03.8]} 18. Nb5 {[%clk 0:02:31.8]}
18... Qb8 {[%clk 0:01:59]} 19. Qd4 {[%clk 0:02:23.8]} 19... e5 {[%clk
0:01:55.1]} 20. Qd3 {[%clk 0:02:09.4]} 20... exf4 {[%clk 0:01:48.4]} 21. Nf5
{[%clk 0:02:09.3]} 21... Ne5 {[%clk 0:01:44.7]} 22. Nxe7+ {[%clk 0:02:03.5]}
22... Rxe7 {[%clk 0:01:43.9]} 23. Qxd6 {[%clk 0:02:03.9]} 23... Qxd6 {[%clk
0:01:30.3]} 24. Nxd6 {[%clk 0:02:03.9]} 24... Nc8 {[%clk 0:01:18.9]} 25. Nf5
{[%clk 0:01:58.7]} 25... Re6 {[%clk 0:01:15]} 26. Red1 {[%clk 0:01:57.5]} 26...
Ne7 {[%clk 0:01:03.4]} 27. Nd4 {[%clk 0:01:50.3]} 27... Rg6 {[%clk 0:00:59]} 28.
h4 {[%clk 0:01:50.3]} 28... h6 {[%clk 0:00:56.9]} 29. Nf5 {[%clk 0:01:46.2]}
29... Re8 {[%clk 0:00:46.6]} 30. Bc5 {[%clk 0:01:35.1]} 30... Nc8 {[%clk
0:00:38.3]} 31. Nd6 {[%clk 0:01:06.4]} 31... Nxd6 {[%clk 0:00:34.8]} 32. Rxd6
{[%clk 0:01:06.9]} 32... Rxd6 {[%clk 0:00:27.5]} 33. Bxd6 {[%clk 0:01:06.9]}
33... f3 {[%clk 0:00:27.3]} 34. Bf1 {[%clk 0:00:56.5]} 34... hxg5 {[%clk
0:00:25.5]} 35. hxg5 {[%clk 0:00:54]} 35... Bxe4 {[%clk 0:00:24]} 36. Re1 {[%clk
0:00:48.6]} 36... Ng4 {[%clk 0:00:18.4]} 37. Bg3 {[%clk 0:00:43.5]} 37... f5
{[%clk 0:00:13.6]} 38. gxf6 {[%clk 0:00:42.1]} 38... Nxf6 {[%clk 0:00:13.3]} 39.
Bc4+ {[%clk 0:00:39.7]} 39... Kh7 {[%clk 0:00:12.6]} 40. Bf2 {[%clk 0:00:35.9]}
40... Rd8 {[%clk 0:00:12]} 41. Bb3 {[%clk 0:00:33.1]} 41... Rd2 {[%clk
0:00:10.9]} 42. Bb6 {[%clk 0:00:26.7]} 42... Rg2+ {[%clk 0:00:09.4]} 43. Kf1
{[%clk 0:00:26.9]} 43... Ng4 {[%clk 0:00:08.8]} 44. Rxe4 {[%clk 0:00:26.4]}
44... Nh2+ {[%clk 0:00:05.1]} 45. Ke1 {[%clk 0:00:26.5]} 1-0

[Event "Early-Titled-Tuesday-Blitz-April-02-2024"]
[Site "Chess.com"]
[Date "2024.04.02"]
[Round "9"]
[White "microbear"]
[Black "dianamirza"]
[Result "1-0"]
[WhiteElo "2356"]
[BlackElo "1957"]
[TimeControl "180+1"]
[EndTime "9:45:28 PDT"]
[Termination "microbear won on time"]

1. e4 {[%clk 0:03:00.9]} 1... c5 {[%clk 0:02:48.1]} 2. Nf3 {[%clk 0:02:58]} 2...
e6 {[%clk 0:02:48.4]} 3. d4 {[%clk 0:02:52.5]} 3... cxd4 {[%clk 0:02:49.3]} 4.
Nxd4 {[%clk 0:02:51.5]} 4... a6 {[%clk 0:02:50]} 5. Nc3 {[%clk 0:02:51.4]} 5...
Nc6 {[%clk 0:02:50.5]} 6. Be3 {[%clk 0:02:51.2]} 6... Nf6 {[%clk 0:02:50.4]} 7.
h3 {[%clk 0:02:49]} 7... Qc7 {[%clk 0:02:49.7]} 8. g3 {[%clk 0:02:39.9]} 8...
Bb4 {[%clk 0:02:45.5]} 9. Bg2 {[%clk 0:02:37.6]} 9... O-O {[%clk 0:02:33.3]} 10.
O-O {[%clk 0:02:35]} 10... b5 {[%clk 0:02:33.9]} 11. e5 {[%clk 0:02:01.7]} 11...
Qxe5 {[%clk 0:02:16.7]} 12. Bxc6 {[%clk 0:01:58]} 12... dxc6 {[%clk 0:02:08.3]}
13. Nxc6 {[%clk 0:01:58.3]} 13... Qd6 {[%clk 0:02:08.7]} 14. Nxb4 {[%clk
0:01:58.5]} 14... Qxb4 {[%clk 0:02:09.6]} 15. Qf3 {[%clk 0:01:55.5]} 15... Rb8
{[%clk 0:02:04.5]} 16. Rab1 {[%clk 0:01:53]} 16... Bb7 {[%clk 0:02:04]} 17. Qf4
{[%clk 0:01:50.1]} 17... Qxf4 {[%clk 0:01:59.5]} 18. Bxf4 {[%clk 0:01:51]} 18...
Rbd8 {[%clk 0:01:58]} 19. Rfd1 {[%clk 0:01:50.3]} 19... Nd5 {[%clk 0:01:55.5]}
20. Nxd5 {[%clk 0:01:49.4]} 20... Bxd5 {[%clk 0:01:56.4]} 21. b3 {[%clk
0:01:43.8]} 21... f6 {[%clk 0:01:46.8]} 22. Bc7 {[%clk 0:01:28.9]} 22... Rc8
{[%clk 0:01:45]} 23. c4 {[%clk 0:01:23.3]} 23... Rxc7 {[%clk 0:01:39.4]} 24.
cxd5 {[%clk 0:01:23]} 24... e5 {[%clk 0:01:35.4]} 25. Rb2 {[%clk 0:01:17.4]}
25... Rd8 {[%clk 0:01:33.5]} 26. Kg2 {[%clk 0:01:16.6]} 26... e4 {[%clk
0:01:26.2]} 27. g4 {[%clk 0:01:13.7]} 27... g6 {[%clk 0:01:23.3]} 28. Kg3 {[%clk
0:01:13.3]} 28... Rc3+ {[%clk 0:01:03]} 29. Kg2 {[%clk 0:01:05.6]} 29... Kf7
{[%clk 0:00:59.1]} 30. a4 {[%clk 0:01:02.8]} 30... f5 {[%clk 0:00:57.4]} 31.
axb5 {[%clk 0:01:00.8]} 31... axb5 {[%clk 0:00:57.1]} 32. gxf5 {[%clk
0:00:56.2]} 32... gxf5 {[%clk 0:00:57.1]} 33. d6 {[%clk 0:00:55.6]} 33... Ke6
{[%clk 0:00:52.7]} 34. Rbd2 {[%clk 0:00:55.1]} 34... Rxb3 {[%clk 0:00:52.6]} 35.
d7 {[%clk 0:00:54.3]} 35... Rd3 {[%clk 0:00:39.7]} 36. Rxd3 {[%clk 0:00:53.2]}
36... exd3 {[%clk 0:00:40.6]} 37. Rxd3 {[%clk 0:00:53.8]} 37... Rxd7 {[%clk
0:00:41.3]} 38. Rb3 {[%clk 0:00:50.2]} 38... Rd5 {[%clk 0:00:40.5]} 39. Kf3
{[%clk 0:00:50]} 39... Ke5 {[%clk 0:00:40.2]} 40. Kg3 {[%clk 0:00:46.7]} 40...
Ke4 {[%clk 0:00:32.3]} 41. Kh4 {[%clk 0:00:44.7]} 41... f4 {[%clk 0:00:29.9]}
42. Kg4 {[%clk 0:00:45]} 42... h5+ {[%clk 0:00:22.3]} 43. Kh4 {[%clk 0:00:40.2]}
43... f3 {[%clk 0:00:14.2]} 44. Kg3 {[%clk 0:00:30.8]} 44... Rg5+ {[%clk
0:00:07.2]} 45. Kh4 {[%clk 0:00:30.9]} 45... Rg2 {[%clk 0:00:07.3]} 46. Rb2
{[%clk 0:00:28.5]} 46... Rg1 {[%clk 0:00:02.5]} 47. Kxh5 {[%clk 0:00:28.1]}
47... Kd3 {[%clk 0:00:01.2]} 48. Rxb5 {[%clk 0:00:27.2]} 1-0

[Event "Early-Titled-Tuesday-Blitz-April-02-2024"]
[Site "Chess.com"]
[Date "2024.04.02"]
[Round "9"]
[White "GoValya"]
[Black "aljado"]
[Result "1-0"]
[WhiteElo "2231"]
[BlackElo "2136"]
[TimeControl "180+1"]
[EndTime "9:45:32 PDT"]
[Termination "GoValya won on time"]

1. Nf3 {[%clk 0:02:59.5]} 1... Nf6 {[%clk 0:02:58]} 2. g3 {[%clk 0:02:59.4]}
2... g6 {[%clk 0:02:57.4]} 3. Bg2 {[%clk 0:02:59.9]} 3... Bg7 {[%clk 0:02:57.9]}
4. O-O {[%clk 0:03:00.1]} 4... O-O {[%clk 0:02:57.6]} 5. d4 {[%clk 0:03:00.8]}
5... d5 {[%clk 0:02:56.4]} 6. c4 {[%clk 0:03:00.2]} 6... c6 {[%clk 0:02:55.8]}
7. Nc3 {[%clk 0:03:00.1]} 7... Nbd7 {[%clk 0:02:54.3]} 8. Ne5 {[%clk 0:03:00.2]}
8... Nb6 {[%clk 0:02:48.7]} 9. b3 {[%clk 0:02:57]} 9... Be6 {[%clk 0:02:31.2]}
10. c5 {[%clk 0:02:55.6]} 10... Nbd7 {[%clk 0:02:30]} 11. Nd3 {[%clk 0:02:47.7]}
11... b5 {[%clk 0:02:27]} 12. Nb4 {[%clk 0:02:24]} 12... Qc8 {[%clk 0:02:24.2]}
13. e4 {[%clk 0:02:22.1]} 13... dxe4 {[%clk 0:02:21.2]} 14. Nxe4 {[%clk
0:02:22.2]} 14... Nxe4 {[%clk 0:02:17.8]} 15. Bxe4 {[%clk 0:02:23.1]} 15... Nxc5
{[%clk 0:02:07]} 16. Bxc6 {[%clk 0:02:18.5]} 16... Nb7 {[%clk 0:02:01.1]} 17.
Qf3 {[%clk 0:02:13.8]} 17... Bg4 {[%clk 0:01:55.1]} 18. Qh1 {[%clk 0:01:48.4]}
18... Rb8 {[%clk 0:01:41.3]} 19. Bf4 {[%clk 0:01:41]} 19... Nd6 {[%clk
0:01:28.6]} 20. Nd5 {[%clk 0:01:40.6]} 20... Qd8 {[%clk 0:01:19.9]} 21. Rae1
{[%clk 0:01:33.5]} 21... e6 {[%clk 0:01:17.1]} 22. Ne3 {[%clk 0:01:26.8]} 22...
Bh3 {[%clk 0:01:14.5]} 23. Bg2 {[%clk 0:01:18.4]} 23... Bxg2 {[%clk 0:01:14.4]}
24. Qxg2 {[%clk 0:01:19.3]} 24... Rc8 {[%clk 0:01:13.7]} 25. Rd1 {[%clk
0:01:18.1]} 25... Qb6 {[%clk 0:01:05.1]} 26. Bxd6 {[%clk 0:01:06.6]} 26... Qxd6
{[%clk 0:01:03.5]} 27. d5 {[%clk 0:01:06.9]} 27... e5 {[%clk 0:01:02]} 28. Qe4
{[%clk 0:01:04.5]} 28... f5 {[%clk 0:00:59.7]} 29. Qd3 {[%clk 0:01:02.6]} 29...
a6 {[%clk 0:00:53.9]} 30. a4 {[%clk 0:00:59.8]} 30... f4 {[%clk 0:00:42.4]} 31.
Ng2 {[%clk 0:00:49.3]} 31... bxa4 {[%clk 0:00:38.7]} 32. bxa4 {[%clk 0:00:49.6]}
32... a5 {[%clk 0:00:37.9]} 33. Rfe1 {[%clk 0:00:43.6]} 33... Rc5 {[%clk
0:00:35.7]} 34. Qe4 {[%clk 0:00:41.1]} 34... Rc3 {[%clk 0:00:22.5]} 35. Rb1
{[%clk 0:00:31.7]} 35... Rc5 {[%clk 0:00:19.8]} 36. Red1 {[%clk 0:00:24.4]}
36... Rd8 {[%clk 0:00:16.3]} 37. gxf4 {[%clk 0:00:22.2]} 37... exf4 {[%clk
0:00:14.5]} 38. Nxf4 {[%clk 0:00:22.4]} 38... Be5 {[%clk 0:00:09.2]} 39. Ne6
{[%clk 0:00:19.9]} 39... Rxd5 {[%clk 0:00:05]} 40. Rxd5 {[%clk 0:00:17.1]} 40...
Qxd5 {[%clk 0:00:05]} 41. Qg4 {[%clk 0:00:15.5]} 41... Qd3 {[%clk 0:00:01.4]}
42. Rf1 {[%clk 0:00:13.4]} 1-0

[Event "Early-Titled-Tuesday-Blitz-April-02-2024"]
[Site "Chess.com"]
[Date "2024.04.02"]
[Round "9"]
[White "francyIM"]
[Black "ChainedDowntohell"]
[Result "1-0"]
[WhiteElo "2803"]
[BlackElo "2579"]
[TimeControl "180+1"]
[EndTime "9:45:33 PDT"]
[Termination "francyIM won on time"]

1. d4 {[%clk 0:03:00.9]} 1... e6 {[%clk 0:02:57.7]} 2. Bf4 {[%clk 0:02:53.5]}
2... b6 {[%clk 0:02:55.3]} 3. e3 {[%clk 0:02:50.1]} 3... Bb7 {[%clk 0:02:55.3]}
4. c4 {[%clk 0:02:50.8]} 4... d6 {[%clk 0:02:50]} 5. Nc3 {[%clk 0:02:50.6]} 5...
Nd7 {[%clk 0:02:49.1]} 6. Nf3 {[%clk 0:02:50.4]} 6... g6 {[%clk 0:02:48.5]} 7.
h3 {[%clk 0:02:49]} 7... Bg7 {[%clk 0:02:48.2]} 8. Bh2 {[%clk 0:02:49.4]} 8...
Ne7 {[%clk 0:02:45.5]} 9. Be2 {[%clk 0:02:48.3]} 9... O-O {[%clk 0:02:42.5]} 10.
O-O {[%clk 0:02:48.5]} 10... h6 {[%clk 0:02:42.7]} 11. b4 {[%clk 0:02:47.8]}
11... a5 {[%clk 0:02:36.2]} 12. bxa5 {[%clk 0:02:46.6]} 12... Rxa5 {[%clk
0:02:35.7]} 13. a4 {[%clk 0:02:47.2]} 13... e5 {[%clk 0:02:30.8]} 14. Qc2 {[%clk
0:02:32.6]} 14... exd4 {[%clk 0:02:15.1]} 15. Nxd4 {[%clk 0:02:33.5]} 15... Nc5
{[%clk 0:02:11.9]} 16. Rfd1 {[%clk 0:02:31.6]} 16... Nc6 {[%clk 0:02:06.9]} 17.
Ndb5 {[%clk 0:02:24.9]} 17... Ne5 {[%clk 0:01:55.1]} 18. Nd5 {[%clk 0:02:12.8]}
18... c6 {[%clk 0:01:39.3]} 19. Ndc3 {[%clk 0:01:40.7]} 19... cxb5 {[%clk
0:01:38.4]} 20. Nxb5 {[%clk 0:01:40.2]} 20... Qg5 {[%clk 0:01:31.1]} 21. Bg3
{[%clk 0:01:34.2]} 21... Be4 {[%clk 0:01:11.5]} 22. Qa2 {[%clk 0:01:26.1]} 22...
Ned3 {[%clk 0:00:57.2]} 23. Bxd3 {[%clk 0:01:18.2]} 23... Nxd3 {[%clk 0:00:51]}
24. Rab1 {[%clk 0:01:17.3]} 24... Be5 {[%clk 0:00:48.5]} 25. Kh2 {[%clk
0:00:56.1]} 25... h5 {[%clk 0:00:37.1]} 26. f4 {[%clk 0:00:51.1]} 26... Nxf4
{[%clk 0:00:28.7]} 27. exf4 {[%clk 0:00:44.7]} 27... Bxf4 {[%clk 0:00:29.6]} 28.
Rb3 {[%clk 0:00:42.8]} 28... h4 {[%clk 0:00:25.1]} 29. Bxf4 {[%clk 0:00:43.1]}
29... Qxf4+ {[%clk 0:00:26]} 30. Kh1 {[%clk 0:00:43.7]} 30... Rfa8 {[%clk
0:00:22.4]} 31. Ra3 {[%clk 0:00:41.7]} 31... d5 {[%clk 0:00:09.2]} 32. cxd5
{[%clk 0:00:38.6]} 32... Rxb5 {[%clk 0:00:05.1]} 33. axb5 {[%clk 0:00:31.6]}
33... Rxa3 {[%clk 0:00:06]} 34. Qxa3 {[%clk 0:00:28.5]} 34... Qf2 {[%clk
0:00:06.2]} 35. Rg1 {[%clk 0:00:25.9]} 35... Bxd5 {[%clk 0:00:04.3]} 36. Qd3
{[%clk 0:00:20.7]} 36... Qc5 {[%clk 0:00:01.7]} 37. Rd1 {[%clk 0:00:19.8]} 37...
Be6 {[%clk 0:00:01.2]} 38. Qd8+ {[%clk 0:00:19.5]} 38... Kg7 {[%clk 0:00:01.2]}
39. Qxh4 {[%clk 0:00:19.4]} 39... Qxb5 {[%clk 0:00:01.8]} 40. Qd4+ {[%clk
0:00:19.8]} 40... Kh7 {[%clk 0:00:01.5]} 41. Qf6 {[%clk 0:00:18.5]} 41... Qg5
{[%clk 0:00:01.1]} 42. Qxg5 {[%clk 0:00:18.3]} 1-0